fUST/lending_fUST_20240707
["ID","MTS","AMOUNT","RATE_DAILY","PERIOD"]
[331415992,1720365039658,-151.27919038,0.00025156,2]
[331415993,1720365039668,-632.73805,0.00027195,2]
[331415994,1720365039678,-500.0,0.00027397,2]
[331415995,1720365039688,-337.82941501,0.00027397,2]
[331415996,1720365039699,-383.50267592,0.00027397,2]
[331415997,1720365039709,-291.88194525,0.00027397,2]
[331415998,1720365039719,-396.0,0.0003,2]
[331415999,1720365039729,-151.27919038,0.00032413,2]
[331416000,1720365039739,-159.596033,0.00032877,2]
[331416001,1720365039750,-632.73805,0.00033295,2]
[331416002,1720365039760,-620.0,0.00033484,2]
[331416003,1720365039770,-1000.0,0.00034,34]
[331416004,1720365039780,-701.28654221,0.00034669,7]
[331416005,1720365039790,-701.28654221,0.0003467,7]
[331416006,1720365039800,-1405.0,0.00034976,2]
[331416007,1720365039810,-19610.5641101,0.00035606,4]
[331416008,1720365039820,-2273.24,0.00035616,3]
[331416009,1720365039830,-983.75784699,0.00036328,2]
[331416010,1720365039840,-1000.0,0.00037,37]
[331416011,1720365039849,-1405.0,0.00037976,2]
[331416012,1720365039859,-150.0,0.00038079,2]
[331416013,1720365039869,-1252.49,0.00039,30]
[331416014,1720365039880,-632.73805,0.00039394,2]
[331416015,1720365039890,-151.27919038,0.00039669,2]
[331416016,1720365039899,-1000.0,0.0004,40]
[331416017,1720365039909,-151.24510086,0.00040383,4]
[331416018,1720365039919,-5412.64303582,0.00040599,20]
[331416019,1720365039929,-150.0,0.00040947,2]
[331416020,1720365039939,-1405.0,0.00040976,2]
[331416021,1720365039949,-150.0,0.00041079,2]
[331416022,1720365039959,-179.148658,0.00041096,2]
[331416023,1720365039969,-155.977319,0.0004189,30]
[331416024,1720365039979,-154.59445059,0.00041903,30]
[331416025,1720365039989,-2000.0,0.00042054,4]
[331416026,1720365039999,-2000.0,0.00042063,4]
[331416027,1720365040010,-2000.0,0.00042072,4]
[331416028,1720365040020,-154.98563256,0.00042461,30]
[331416029,1720365040031,-2122.29,0.00042465,120]
[331416030,1720365040040,-154.98563256,0.00042855,30]
[331416031,1720365040051,-19610.5641101,0.0004299,5]
[331416032,1720365040060,-18079.50920388,0.00043,120]
[331416033,1720365040071,-1000.0,0.00043,43]
[331416034,1720365040080,-88139.16569002,0.00043,10]
[331416035,1720365040090,-3000.0,0.00043,120]
[331416036,1720365040100,-2122.29,0.0004315,120]
[331416037,1720365040109,-154.59445059,0.00043163,30]
[331416038,1720365040119,-154.98563256,0.00043216,30]
[331416039,1720365040130,-683.0,0.00043276,30]
[331416040,1720365040140,-154.98563256,0.00043462,30]
[331416041,1720365040150,-19610.5641101,0.0004367,5]
[331416042,1720365040160,-47908.81800741,0.0004368,5]
[331416043,1720365040174,-398.22644225,0.0004368,5]
[331416045,1720365041141,-2678.36,0.0004366,3]
[331416047,1720365041153,-10524.64788074,0.0004368,5]
[331416049,1720365041164,-10426.55633251,0.0004369,2]
[331416056,1720365041429,-36003.1744855,0.0004369,2]
[331416057,1720365041439,-89952.00267322,0.0004369,2]
[331416058,1720365041449,-151.0,0.0004369,14]
[331416059,1720365041461,-309.59754252,0.00043834,4]
[331416060,1720365041471,-2122.29,0.00043835,120]
[331416061,1720365041481,-1405.0,0.00043976,2]
[331416062,1720365041491,-150.0,0.00044079,2]
[331416063,1720365041502,-154.98563256,0.00044142,30]
[331416064,1720365041512,-154.76146561,0.00044431,55]
[331416065,1720365041522,-2122.29,0.0004452,120]
[331416066,1720365041531,-2000.0,0.00045,120]
[331416067,1720365041541,-154.98563256,0.00045069,30]
[331416068,1720365041552,-154.59445059,0.00045135,30]
[331416069,1720365041562,-2122.29,0.00045205,120]
[331416070,1720365041572,-632.73805,0.00045494,2]
[331416071,1720365041581,-683.0,0.00045553,30]
[331416072,1720365041591,-154.98563256,0.00045753,30]
[331416073,1720365041603,-2122.29,0.0004589,120]
[331416074,1720365041613,-19610.5641101,0.0004598,5]
[331416075,1720365041624,-154.98563256,0.00045984,30]
[331416076,1720365041634,-151.0,0.0004599,14]
[331416077,1720365041643,-154.98563256,0.00045999,30]
[331416078,1720365041654,-10000.0,0.00046,45]
[331416079,1720365041665,-1000.0,0.00046,46]
[331416080,1720365041675,-154.76146561,0.00046431,63]
[331416081,1720365041684,-154.98563256,0.00046447,30]
[331416082,1720365041695,-306.0,0.00046548,2]
[331416083,1720365041704,-155.2919559,0.00046548,2]
[331416084,1720365041715,-153.0,0.00046548,2]
[331416085,1720365041725,-153.0,0.00046548,2]
[331416086,1720365041734,-153.0,0.00046548,2]
[331416087,1720365041744,-206.2377939,0.00046548,2]
[331416088,1720365041755,-153.0,0.00046548,2]
[331416089,1720365041764,-153.0,0.00046548,2]
[331416090,1720365041775,-154.98563256,0.00046565,30]
[331416091,1720365041784,-2122.29,0.00046575,120]
[331416092,1720365041795,-159.596033,0.00046575,2]
[331416093,1720365041805,-151.27919038,0.00046925,2]
[331416094,1720365041814,-1405.0,0.00046976,2]
[331416095,1720365041824,-10000.0,0.00047,47]
[331416096,1720365041836,-154.59445059,0.00047025,30]
[331416097,1720365041846,-153.0,0.00047123,120]
[331416098,1720365041855,-153.0,0.00047123,120]
[331416099,1720365041865,-153.0,0.00047123,120]
[331416100,1720365041875,-153.0,0.00047123,120]
[331416101,1720365041884,-153.0,0.00047123,120]
[331416102,1720365041894,-153.0,0.00047123,120]
[331416103,1720365041904,-153.0,0.00047123,120]
[331416104,1720365041914,-153.0,0.00047123,120]
[331416105,1720365041924,-153.0,0.00047123,120]
[331416106,1720365041934,-153.0,0.00047123,120]
[331416107,1720365041944,-153.0,0.00047123,120]
[331416108,1720365041956,-153.0,0.00047123,120]
[331416109,1720365041967,-153.0,0.00047123,120]
[331416110,1720365041978,-153.0,0.00047123,120]
[331416111,1720365041987,-153.0,0.00047123,120]
[331416112,1720365041997,-153.0,0.00047123,120]
[331416113,1720365042008,-19610.5641101,0.0004725,5]
[331416114,1720365042019,-2122.29,0.0004726,120]
[331416115,1720365042029,-153.0,0.0004737,2]
[331416116,1720365042038,-153.0,0.0004737,2]
[331416117,1720365042048,-153.0,0.0004737,2]
[331416118,1720365042058,-153.0,0.0004737,2]
[331416119,1720365042067,-153.0,0.0004737,2]
[331416120,1720365042078,-153.0,0.0004737,2]
[331416121,1720365042088,-153.0,0.0004737,2]
[331416122,1720365042097,-153.0,0.0004737,2]
[331416123,1720365042107,-154.59445059,0.00047535,30]
[331416124,1720365042116,-154.59445059,0.00047785,30]
[331416125,1720365042127,-2122.29,0.00047945,120]
[331416126,1720365042136,-683.0,0.00047951,30]
[331416127,1720365042146,-10000.0,0.00048,48]
[331416128,1720365042155,-2000.0,0.00048,120]
[331416129,1720365042165,-153.0,0.00048192,2]
[331416130,1720365042174,-154.98563256,0.00048385,30]
[331416131,1720365042183,-154.76146561,0.00048431,72]
[331416132,1720365042193,-154.98563256,0.00048435,30]
[331416133,1720365042203,-154.98563256,0.00048559,30]
[331416134,1720365042212,-154.98563256,0.00048581,30]
[331416135,1720365042222,-154.59445059,0.00048606,30]
[331416136,1720365042232,-2122.29,0.0004863,120]
[331416137,1720365042241,-154.98563256,0.00048924,30]
[331416138,1720365042251,-10000.0,0.00049,49]
[331416139,1720365042260,-1000.0,0.00049,49]
[331416140,1720365042269,-154.59445063,0.00049194,30]
[331416141,1720365042278,-502.98183692,0.00049315,2]
[331416142,1720365042288,-500.0,0.00049315,120]
[331416143,1720365042298,-500.0,0.00049315,120]
[331416144,1720365042307,-500.0,0.00049315,120]
[331416145,1720365042316,-500.0,0.00049315,120]
[331416146,1720365042326,-500.0,0.00049315,120]
[331416147,1720365042336,-500.0,0.00049315,120]
[331416148,1720365042345,-500.0,0.00049315,120]
[331416149,1720365042355,-500.0,0.00049315,120]
[331416150,1720365042364,-500.0,0.00049315,120]
[331416151,1720365042373,-500.0,0.00049315,120]
[331416152,1720365042383,-500.0,0.00049315,120]
[331416153,1720365042392,-483.11401626,0.00049315,120]
[331416154,1720365042402,-500.0,0.00049315,120]
[331416155,1720365042414,-500.0,0.00049315,120]
[331416156,1720365042424,-2266.35,0.00049315,120]
[331416157,1720365042434,-500.0,0.00049315,120]
[331416158,1720365042444,-1072.36,0.00049315,120]
[331416159,1720365042455,-502.98230336,0.00049315,120]
[331416160,1720365042464,-301.79,0.00049315,14]
[331416161,1720365042474,-367.7,0.00049315,120]
[331416162,1720365042485,-500.0,0.00049315,120]
[331416163,1720365042495,-500.0,0.00049315,30]
[331416164,1720365042504,-500.0,0.00049315,30]
[331416165,1720365042514,-500.0,0.00049315,30]
[331416166,1720365042523,-500.0,0.00049315,30]
[331416167,1720365042533,-500.0,0.00049315,30]
[331416168,1720365042543,-500.0,0.00049315,30]
[331416169,1720365042552,-500.0,0.00049315,30]
[331416170,1720365042561,-600.021962,0.00049315,30]
[331416171,1720365042571,-1249.56,0.00049315,120]
[331416172,1720365042581,-500.0,0.00049315,120]
[331416173,1720365042590,-500.0,0.00049315,120]
[331416174,1720365042599,-204.50719285,0.00049315,120]
[331416175,1720365042609,-500.0,0.00049315,120]
[331416176,1720365042619,-2122.29,0.00049315,120]
[331416177,1720365042629,-500.0,0.00049315,120]
[331416178,1720365042638,-500.0,0.00049315,120]
[331416179,1720365042647,-160.0,0.00049315,120]
[331416180,1720365042657,-622.49,0.00049315,120]
[331416181,1720365042666,-500.0,0.00049315,2]
[331416182,1720365042675,-500.0,0.00049315,2]
[331416183,1720365042684,-1413.70879793,0.00049315,120]
[331416184,1720365042698,-2831.77120207,0.00049315,120]
[331416185,1720365042708,-500.0,0.00049315,120]
[331416186,1720365042717,-346.08400697,0.00049315,2]
[331416187,1720365042726,-500.0,0.00049315,2]
[331416188,1720365042735,-240.0,0.00049315,120]
[331416189,1720365042746,-2000.0,0.00049479,120]
[331416190,1720365042756,-500.0,0.00049589,120]
[331416191,1720365042765,-315.42718065,0.00049589,120]
[331416192,1720365042775,-500.0,0.00049589,120]
[331416193,1720365042785,-1163.18861264,0.00049589,120]
[331416222,1720365043899,-1103.16138736,0.00049589,120]
[331416223,1720365043910,-500.0,0.00049589,120]
[331416224,1720365043920,-1072.36,0.00049589,120]
[331416225,1720365043929,-500.0,0.00049589,120]
[331416226,1720365043939,-1249.56,0.00049589,120]
[331416227,1720365043948,-500.0,0.00049589,120]
[331416228,1720365043958,-515.64808194,0.00049589,120]
[331416229,1720365043968,-171.31810441,0.00049589,120]
[331416230,1720365043977,-500.0,0.00049589,120]
[331416231,1720365043987,-500.0,0.00049589,120]
[331416232,1720365043996,-622.49,0.00049589,120]
[331416233,1720365044006,-575.95691693,0.00049589,2]
[331416234,1720365044015,-500.0,0.00049589,2]
[331416235,1720365044025,-4245.48,0.00049589,120]
[331416236,1720365044035,-500.0,0.00049589,120]
[331416237,1720365044044,-500.0,0.00049589,2]
[331416238,1720365044054,-154.98563267,0.00049713,30]
[331416239,1720365044064,-153.0,0.00049836,2]
[331416240,1720365044073,-642.54349288,0.00049863,61]
[331416241,1720365044083,-500.0,0.00049863,120]
[331416242,1720365044092,-500.0,0.00049863,120]
[331416243,1720365044102,-1621.93878584,0.00049863,120]
[331416253,1720365254191,521.95755499,9.999e-05,7]
[331416254,1720365299690,521.95755499,0.0001212,7]
[331416255,1720365418196,520.43736814,9.999e-05,7]
[331416264,1720365757418,1083.54860904,0.0001212,4]
[331416290,1720366170508,-696.50812903,0.00014794,2]
[331416337,1720366232757,-938.24675533,0.00014794,2]
[331416339,1720366232766,-500.0,0.00016254,2]
[331416341,1720366232776,-500.0,0.00016254,2]
[331416343,1720366232785,-500.0,0.00016254,2]
[331416345,1720366232795,-500.0,0.00016254,2]
[331416347,1720366232808,-500.0,0.00016254,2]
[331416349,1720366232821,-500.0,0.00016254,2]
[331416351,1720366232831,-500.0,0.00016254,2]
[331416353,1720366232843,-500.0,0.00016254,2]
[331416355,1720366232852,-500.0,0.00016254,2]
[331416356,1720366232861,-500.0,0.00016254,2]
[331416357,1720366232870,-317.82488972,0.00016254,2]
[331416358,1720366232881,-231.55231462,0.00016254,2]
[331416359,1720366232890,-13522.61007393,0.00016255,2]
[331416380,1720366238707,-1058.862999,0.00016255,2]
[331416391,1720366238971,-42647.86792967,0.00016255,2]
[331416393,1720366238981,-721.75266177,0.00016258,2]
[331416394,1720366238991,-24900.0,0.00016358,2]
[331416396,1720366239001,-166.666666,0.00016575,2]
[331416398,1720366239012,-166.666666,0.00017026,2]
[331416399,1720366239023,-166.666666,0.00017478,2]
[331416400,1720366239033,-166.666666,0.0001793,2]
[331416401,1720366239043,-166.666666,0.00018382,2]
[331416402,1720366239054,-166.666666,0.00018834,2]
[331416403,1720366239065,-27368.29136516,0.00018899,2]
[331416404,1720366239075,-245.8313992,0.00019041,2]
[331416405,1720366239087,-160.316526,0.00019178,2]
[331416406,1720366239098,-14527.7103924,0.0001978,2]
[331416407,1720366239109,-14527.7103924,0.0001979,2]
[331416408,1720366239119,-52119.39254387,0.000198,2]
[331416409,1720366239129,-151.27919038,0.000199,2]
[331416410,1720366239139,-1117.35505048,0.0002,2]
[331416411,1720366239149,-763.48993106,0.0002,2]
[331416412,1720366239161,-4174.40467449,0.0002,2]
[331416413,1720366239171,-162.031494,0.00020325,2]
[331416414,1720366239182,-506.19044,0.00021096,2]
[331416415,1720366239192,-721.75266177,0.00021514,2]
[331416416,1720366239202,-879.66892954,0.0002217,2]
[331416417,1720366239212,-199.70953756,0.00025,2]
[331416418,1720366239222,-14527.7103924,0.00025859,3]
[331416419,1720366239232,-721.75266177,0.0002677,2]
[331416420,1720366239242,-506.19044,0.00027195,2]
[331416421,1720366239252,-30000.0,0.00027999,2]
[331416422,1720366239263,-9615.23092531,0.00029903,2]
[331416423,1720366239273,-721.75266177,0.00032026,2]
[331416424,1720366239284,-506.19044,0.00033295,2]
[331416425,1720366239294,-620.0,0.00033474,2]
[331416426,1720366239304,-14527.7103924,0.00033822,4]
[331416427,1720366239314,-4610.6755688,0.00034592,2]
[331416428,1720366239324,-2474.11678617,0.00034999,4]
[331416429,1720366239335,-1510.9,0.00035616,3]
[331416430,1720366239345,-2359.02,0.00035616,3]
[331416431,1720366239356,-983.75784699,0.00036326,2]
[331416432,1720366239366,-721.75266177,0.00037282,2]
[331416433,1720366239376,-1400.4181649,0.00037999,4]
[331416434,1720366239385,-150.0,0.0003846,2]
[331416435,1720366239395,-1405.0,0.0003846,2]
[331416436,1720366239405,-264.97857403,0.00038499,2]
[331416437,1720366239415,-506.19044,0.00039394,2]
[331416438,1720366239425,-293.33733024,0.00040229,4]
[331416439,1720366239434,-151.24510086,0.00040936,4]
[331416440,1720366239444,-500.0,0.00040979,31]
[331416441,1720366239454,-359.9918285,0.00040979,31]
[331416442,1720366239464,-14527.7103924,0.0004098,5]
[331416443,1720366239474,-1250.0,0.00041,120]
[331416444,1720366239484,-179.148658,0.00041096,2]
[331416445,1720366239494,-150.0,0.0004146,2]
[331416446,1720366239504,-1405.0,0.0004146,2]
[331416447,1720366239514,-1250.0,0.000415,120]
[331416448,1720366239524,-150.0,0.00041573,2]
[331416449,1720366239534,-155.977319,0.0004189,30]
[331416450,1720366239544,-2000.0,0.00042068,4]
[331416451,1720366239554,-1827.48695724,0.00042076,4]
[331416452,1720366239564,-2000.0,0.00042077,4]
[331416453,1720366239574,-154.98563256,0.00042178,30]
[331416454,1720366239586,-154.98563256,0.00042184,30]
[331416455,1720366239596,-1326.43,0.00042465,120]
[331416456,1720366239607,-3950.00806564,0.000425,120]
[331416457,1720366239618,-721.75266177,0.00042538,28]
[331416458,1720366239628,-1326.43,0.0004315,120]
[331416459,1720366239638,-1326.43,0.00043835,120]
[331416460,1720366239648,-154.98563256,0.00044001,30]
[331416461,1720366239658,-1405.0,0.0004446,2]
[331416462,1720366239669,-1326.43,0.0004452,120]
[331416463,1720366239680,-1326.43,0.00045205,120]
[331416464,1720366239691,-506.19044,0.00045494,2]
[331416465,1720366239701,-1326.43,0.0004589,120]
[331416466,1720366239711,-154.76146562,0.00045928,61]
[331416467,1720366239721,-1326.43,0.00046575,120]
[331416468,1720366239732,-153.0,0.00047123,120]
[331416469,1720366239742,-153.0,0.00047123,120]
[331416470,1720366239752,-1326.43,0.0004726,120]
[331416471,1720366239762,-154.98563256,0.00047367,30]
[331416472,1720366239774,-1405.0,0.0004746,2]
[331416473,1720366239785,-154.59445059,0.00047704,30]
[331416474,1720366239796,-721.75266177,0.00047794,28]
[331416475,1720366239808,-1326.43,0.00047945,120]
[331416476,1720366239819,-1326.43,0.0004863,120]
[331416477,1720366239830,-1000.0,0.00049,49]
[331416478,1720366239840,-154.59445059,0.0004909,30]
[331416479,1720366239851,-14527.7103924,0.00049305,6]
[331416480,1720366239861,-500.0,0.00049315,120]
[331416481,1720366239872,-983.0,0.00049315,120]
[331416482,1720366239885,-500.0,0.00049315,120]
[331416483,1720366239896,-502.92035483,0.00049315,120]
[331416484,1720366239906,-500.0,0.00049315,120]
[331416485,1720366239916,-500.0,0.00049315,120]
[331416486,1720366239927,-2009.91,0.00049315,120]
[331416487,1720366239938,-1145.43,0.00049315,120]
[331416488,1720366239949,-1326.43,0.00049315,120]
[331416489,1720366239960,-500.0,0.00049315,120]
[331416490,1720366239971,-500.0,0.00049315,120]
[331416491,1720366239981,-500.0,0.00049315,120]
[331416492,1720366239991,-570.62,0.00049315,120]
[331416493,1720366240002,-500.0,0.00049315,120]
[331416494,1720366240013,-3891.69,0.00049315,120]
[331416495,1720366240023,-500.0,0.00049315,120]
[331416496,1720366240033,-500.0,0.00049315,2]
[331416497,1720366240044,-500.0,0.00049315,2]
[331416498,1720366240054,-500.0,0.00049589,120]
[331416499,1720366240066,-983.0,0.00049589,120]
[331416500,1720366240076,-328.67,0.00049589,120]
[331416501,1720366240088,-500.0,0.00049589,120]
[331416502,1720366240098,-500.0,0.00049589,120]
[331416503,1720366240109,-2009.91,0.00049589,120]
[331416504,1720366240119,-1145.43,0.00049589,120]
[331416505,1720366240130,-500.0,0.00049589,120]
[331416506,1720366240140,-500.0,0.00049589,120]
[331416507,1720366240151,-500.0,0.00049589,120]
[331416508,1720366240162,-570.62,0.00049589,120]
[331416509,1720366240173,-500.0,0.00049589,120]
[331416510,1720366240184,-3891.69,0.00049589,120]
[331416511,1720366240194,-500.0,0.00049589,120]
[331416512,1720366240204,-500.0,0.00049589,2]
[331416513,1720366240214,-500.0,0.00049589,2]
[331416514,1720366240225,-14527.7103924,0.00049853,6]
[331416515,1720366240236,-346.44668757,0.00049863,4]
[331416516,1720366240248,-657.31747399,0.00049863,4]
[331416517,1720366240258,-5412.64303582,0.00049863,20]
[331416518,1720366240269,-500.0,0.00049863,120]
[331416519,1720366240280,-983.0,0.00049863,120]
[331416520,1720366240292,-500.0,0.00049863,120]
[331416521,1720366240303,-500.0,0.00049863,120]
[331416522,1720366240313,-2009.91,0.00049863,120]
[331416523,1720366240324,-1145.43,0.00049863,120]
[331416524,1720366240340,-500.0,0.00049863,120]
[331416525,1720366240352,-500.0,0.00049863,120]
[331416526,1720366240363,-500.0,0.00049863,120]
[331416527,1720366240375,-570.62,0.00049863,120]
[331416528,1720366240387,-287.5472963,0.00049863,120]
[331416529,1720366240399,-3891.69,0.00049863,120]
[331416530,1720366240410,-500.0,0.00049863,120]
[331416531,1720366240421,-500.0,0.00049863,2]
[331416532,1720366240431,-10000.0,0.0005,50]
[331416533,1720366240442,-154.68290005,0.0005,30]
[331416534,1720366240452,-149.999999,0.0005,120]
[331416535,1720366240462,-502.02517214,0.0005,120]
[331416536,1720366240473,-400.84157942,0.0005,120]
[331416537,1720366240483,-200.0,0.0005,120]
[331416538,1720366240494,-192.0,0.0005,120]
[331416539,1720366240504,-500.0,0.0005,120]
[331416542,1720366240516,-3000.0,0.0005,120]
[331416544,1720366240526,-1000.0,0.0005,50]
[331416545,1720366240536,-1326.43,0.0005,120]
[331416547,1720366240547,-3000.0,0.000501,120]
[331416549,1720366240558,-14527.7103924,0.00050126,6]
[331416551,1720366240569,-500.0,0.00050136,120]
[331416553,1720366240579,-983.0,0.00050136,120]
[331416554,1720366240590,-500.0,0.00050136,120]
[331416556,1720366240600,-500.0,0.00050136,120]
[331416558,1720366240610,-2009.91,0.00050136,120]
[331416559,1720366240620,-1145.43,0.00050136,120]
[331416561,1720366240751,-500.0,0.00050136,120]
[331416562,1720366240762,-500.0,0.00050136,120]
[331416563,1720366240772,-570.62,0.00050136,120]
[331416564,1720366240783,-3891.69,0.00050136,120]
[331416565,1720366240793,-500.0,0.00050136,120]
[331416566,1720366240808,-500.0,0.00050136,2]
[331416567,1720366240818,-150.69860279,0.00050226,2]
[331416568,1720366240828,-500.0,0.0005041,120]
[331416569,1720366240843,-983.0,0.0005041,120]
[331416570,1720366240853,-500.0,0.0005041,120]
[331416571,1720366240863,-500.0,0.0005041,120]
[331416572,1720366240873,-2009.91,0.0005041,120]
[331416573,1720366240885,-1145.43,0.0005041,120]
[331416574,1720366240895,-500.0,0.0005041,120]
[331416575,1720366240905,-500.0,0.0005041,120]
[331416576,1720366240915,-570.62,0.0005041,120]
[331416577,1720366240925,-3891.69,0.0005041,120]
[331416579,1720366240935,-500.0,0.0005041,120]
[331416580,1720366240944,-500.0,0.0005041,2]
[331416582,1720366240955,-1405.0,0.0005046,120]
[331416584,1720366240965,-683.0,0.00050474,30]
[331416586,1720366240975,-683.0,0.00050474,30]
[331416588,1720366240985,-500.0,0.00050684,120]
[331416590,1720366240994,-983.0,0.00050684,120]
[331416591,1720366241005,-500.0,0.00050684,120]
[331416593,1720366241014,-500.0,0.00050684,120]
[331416595,1720366241024,-2009.91,0.00050684,120]
[331416597,1720366241034,-1145.43,0.00050684,120]
[331416598,1720366241043,-1326.43,0.00050684,120]
[331416599,1720366241054,-500.0,0.00050684,120]
[331416600,1720366241064,-500.0,0.00050684,120]
[331416601,1720366241075,-570.62,0.00050684,120]
[331416602,1720366241087,-3891.69,0.00050684,120]
[331416603,1720366241100,-500.0,0.00050684,120]
[331416604,1720366241109,-500.0,0.00050684,2]
[331416605,1720366241119,-14527.7103924,0.00050938,6]
[331416606,1720366241129,-500.0,0.00050958,120]
[331416607,1720366241139,-983.0,0.00050958,120]
[331416608,1720366241148,-500.0,0.00050958,120]
[331416609,1720366241158,-500.0,0.00050958,120]
[331416610,1720366241168,-2009.91,0.00050958,120]
[331416611,1720366241178,-1145.43,0.00050958,120]
[331416612,1720366241188,-500.0,0.00050958,120]
[331416613,1720366241198,-500.0,0.00050958,120]
[331416614,1720366241208,-570.62,0.00050958,120]
[331416615,1720366241217,-3891.69,0.00050958,120]
[331416616,1720366241227,-500.0,0.00050958,120]
[331416617,1720366241236,-500.0,0.00050958,2]
[331416618,1720366241247,-10000.0,0.00051,51]
[331416619,1720366241256,-1000.0,0.00051,51]
[331416620,1720366241266,-3000.0,0.00051,85]
[331416621,1720366241276,-5068.87846,0.0005101,85]
[331416622,1720366241286,-280.66040776,0.00051162,2]
[331416623,1720366241295,-500.0,0.00051232,120]
[331416624,1720366241306,-983.0,0.00051232,120]
[331416625,1720366241316,-472.5815,0.00051232,120]
[331416626,1720366241326,-359.64,0.00051232,120]
[331416627,1720366241337,-2009.91,0.00051232,120]
[331416628,1720366241347,-1145.43,0.00051232,120]
[331416629,1720366241357,-500.0,0.00051232,120]
[331416630,1720366241367,-500.0,0.00051232,120]
[331416631,1720366241377,-570.62,0.00051232,120]
[331416632,1720366241388,-3891.69,0.00051232,120]
[331416633,1720366241397,-500.0,0.00051232,120]
[331416634,1720366241407,-500.0,0.00051232,2]
[331416635,1720366241417,-1326.43,0.00051369,120]
[331416636,1720366241426,-14527.7103924,0.00051486,6]
[331416637,1720366241436,-373.0,0.000515,29]
[331416638,1720366241447,-500.0,0.00051506,120]
[331416639,1720366241457,-983.0,0.00051506,120]
[331416640,1720366241466,-2009.91,0.00051506,120]
[331416641,1720366241476,-1145.43,0.00051506,120]
[331416642,1720366241487,-500.0,0.00051506,120]
[331416643,1720366241496,-500.0,0.00051506,120]
[331416644,1720366241506,-570.62,0.00051506,120]
[331416645,1720366241516,-3891.69,0.00051506,120]
[331416646,1720366241525,-500.0,0.00051506,120]
[331416647,1720366241535,-500.0,0.00051506,2]
[331416648,1720366241545,-506.19044,0.00051593,2]
[331416649,1720366241554,-500.0,0.0005178,120]
[331416650,1720366241566,-983.0,0.0005178,120]
[331416651,1720366241576,-2009.91,0.0005178,120]
[331416652,1720366241587,-1145.43,0.0005178,120]
[331416653,1720366241596,-479.542959,0.0005178,120]
[331416654,1720366241606,-500.0,0.0005178,120]
[331416655,1720366241617,-570.62,0.0005178,120]
[331416656,1720366241628,-3891.69,0.0005178,120]
[331416657,1720366241637,-500.0,0.0005178,120]
[331416658,1720366241648,-500.0,0.0005178,2]
[331416659,1720366241659,-1028.01532345,0.000518,120]
[331416660,1720366241668,-2000.0,0.000518,120]
[331416661,1720366241678,-14527.7103924,0.0005188,6]
[331416662,1720366241687,-13424.67575295,0.0005189,6]
[331416707,1720366244120,-162.4436797,0.00033821,7]
[331416708,1720366244129,-252.16992277,0.00033821,7]
[331416709,1720366244142,-326.24083711,0.00033821,7]
[331416710,1720366244154,-378.64400396,0.00033821,7]
[331416711,1720366244165,-262.85160769,0.00033821,7]
[331416712,1720366244177,-500.0,0.00033821,7]
[331416713,1720366244190,-500.0,0.00033821,7]
[331416714,1720366244201,-159.73487485,0.00033821,7]
[331416715,1720366244213,-500.0,0.00033821,7]
[331416716,1720366244224,-6874.57558407,0.0005189,6]
[331416923,1720367437877,-26381.68865026,0.00016255,2]
[331416924,1720367437892,-986.6027149,0.00016255,2]
[331416925,1720367437902,-379.64283,0.00021096,2]
[331416926,1720367437912,-279.40077091,0.000212,2]
[331416929,1720367438099,-222.69113313,0.000212,2]